{"text_format":"3","workbook":"xlsx","n_sheets":1,"sheets":["Sheet1"],"read":"whole","date_system":"1900"}

{"sheet":"Sheet1","index":0,"n_rows":25,"n_cols":12,"rows_kept":25,"merged":[[0,3,0,4],[0,5,0,6],[0,7,0,8],[13,0,13,10],[14,0,14,11],[15,0,15,11],[17,3,17,4],[17,5,17,6],[17,7,17,8],[17,9,17,11],[18,3,18,4],[18,5,18,6],[18,7,18,8],[18,9,18,11],[19,3,19,4],[19,5,19,6],[19,7,19,8],[19,9,19,11],[20,3,20,4],[20,5,20,6],[20,9,20,11],[21,3,21,4],[21,5,21,6],[21,7,21,8],[21,9,21,11],[23,3,23,4],[23,5,23,6],[23,7,23,8],[23,9,23,11],[24,0,24,11]]}
["DESCRIPTION",null,null,"YEAR 1",null,"YEAR 2",null,"YEAR 3"]
["Item"," Quantity  "," Unit of measure "," Price each / per month  "," Total  Excl VAT "," Price  per month  "," Total  Excl VAT "," Price  per month  "," Total  Excl VAT ","Sub Total"," VAT 15% "," GRAND TOTAL "]
["1.1 Site 1 – Main OpenScape 4000 Site Oslo Beach",12,"MONTHS",null,{"$f":"+D3*B3","v":0},null,{"$f":"+F3*B3","v":0},null,{"$f":"+H3*B3","v":0},{"$f":"+I3+G3+E3","v":0},{"$f":"+J3*15%","v":0},{"$f":"+K3+J3","v":0}]
["1.2 Site 2 –  Connor street",12,"MONTHS",null,{"$f":"+D4*B4","v":0},null,{"$f":"+F4*B4","v":0},null,{"$f":"+H4*B4","v":0},{"$f":"+I4+G4+E4","v":0},{"$f":"+J4*15%","v":0},{"$f":"+K4+J4","v":0}]
["1.3 Site 3 – Remote Site Disaster Management Centre",12,"MONTHS",null,0,null,0,null,0,0,0,0]
["1.4 Site 4 – Microsoft Teams",12,"MONTHS",null,0,null,0,null,0,0,0,0]
["1.5 Site 5 – Switchboards",12,"MONTHS",null,0,null,0,null,0,0,0,0]
["1.6 Site 5  – Telephone Management System",12,"MONTHS",null,0,null,0,null,0,0,0,0]
["1.7 – Training",3,"USERS",null,0,null,0,null,0,0,0,0]
[]
[]
["SUB TOTAL"]
["VALUE ADDED TAX"]
["TOTAL CARRIED TO FORM OF OFFER & FRONT PAGE OF TENDER DOCUMENT",{"$nulls":10},{"$f":"SUM(L3:L13)","v":0}]
["All escalations should be included in the bid price, All pricing to be given in South African Rands."]
["Bid price must be include the specifciations found in the tender specification"]
[]
["Rates",null,null,"YEAR 1",null,"YEAR 2",null,"YEAR 3",null,"RATE PER DEVICE VAT EXCL "]
["VOIP Instrument Model:  Unify Openscape CP110 (Or equivalent)",1,"Each"]
["VOIP Instrument Model:  Unify Openscape CP205 (Or equivalent)",1,"Each"]
["Hourly support outside of SLA ",1,"Each"]
["Call out Fee",1,"Each"]
["Jaba Evolve 20 MS USB Stereo Headset (Or equivalent Teams certified USB headset)",1,"Each"]
["Rates per additional Teams SBC License",1,"Each"]
["RATES PER ITEM CARRIED TO FORM OF OFFER & FRONT PAGE OF TENDER DOCUMENT"]